[Event "Schack-SM 2022: Mastarklassen"]
[Site "Fyrishov, Idrottsgatan 2, Uppsala, Sweden"]
[Date "2022.07.05"]
[Round "4.4"]
[White "Jogstad, Daniel"]
[Black "Hammarstrom, Ulf"]
[Result "1-0"]
[TimeControl "90 minutes for 40 moves + 30 minutes for the rest of the game + 30 seconds per move from move one."]
[WhiteTitle "CM"]
[WhiteFideId "1718959"]
[BlackFideId "1710214"]
[WhiteElo "2057"]
[BlackElo "2233"]

1. e4 {[%clk 01:30:54]} {[%emt 00:00:04]} e5 {[%clk 01:30:55]} {[%emt
00:00:06]} 2. Nf3 {[%clk 01:31:20]} {[%emt 00:00:04]} Nc6 {[%clk 01:31:07]}
{[%emt 00:00:19]} 3. Bc4 {[%clk 01:31:45]} {[%emt 00:00:04]} Nf6 {[%clk
01:31:06]} {[%emt 00:00:31]} 4. d3 {[%clk 01:32:10]} {[%emt 00:00:05]} Bc5
{[%clk 01:31:06]} {[%emt 00:00:29]} 5. c3 {[%clk 01:32:34]} {[%emt 00:00:07]}
O-O {[%clk 01:31:31]} {[%emt 00:00:05]} 6. O-O {[%clk 01:33:01]} {[%emt
00:00:03]} d5 {[%clk 01:31:24]} {[%emt 00:00:38]} 7. exd5 {[%clk 01:33:21]}
{[%emt 00:00:10]} Nxd5 {[%clk 01:31:43]} {[%emt 00:00:11]} 8. Nbd2 {[%clk
01:07:05]} {[%emt 00:26:46]} Nb6 {[%clk 01:28:53]} {[%emt 00:03:20]} 9. Bb3
{[%clk 01:07:31]} {[%emt 00:00:04]} Qxd3 {[%clk 01:24:49]} {[%emt 00:04:34]} 10.
Bc2 {[%clk 01:07:53]} {[%emt 00:00:08]} Qd8 {[%clk 01:22:47]} {[%emt 00:02:31]}
11. Qe2 {[%clk 01:00:49]} {[%emt 00:07:35]} Bd6 {[%clk 01:13:56]} {[%emt
00:09:21]} 12. Ne4 {[%clk 00:55:09]} {[%emt 00:06:10]} Bg4 {[%clk 00:59:59]}
{[%emt 00:14:28]} 13. Neg5 {[%clk 00:25:11]} {[%emt 00:30:27]} g6 {[%clk
00:46:26]} {[%emt 00:14:04]} 14. h3 {[%clk 00:25:08]} {[%emt 00:00:33]} Bxf3
{[%clk 00:39:04]} {[%emt 00:07:52]} 15. Qxf3 {[%clk 00:25:21]} {[%emt
00:00:16]} Qe7 {[%clk 00:30:16]} {[%emt 00:09:19]} 16. Re1 {[%clk 00:18:53]}
{[%emt 00:06:56]} Kg7 {[%clk 00:27:24]} {[%emt 00:03:23]} 17. Qg3 {[%clk
00:01:59]} {[%emt 00:17:23]} h6 {[%clk 00:24:55]} {[%emt 00:03:00]} 18. Ne4
{[%clk 00:02:26]} {[%emt 00:00:03]} f5 {[%clk 00:24:04]} {[%emt 00:01:21]} 19.
Nxd6 {[%clk 00:02:46]} {[%emt 00:00:10]} cxd6 {[%clk 00:24:10]} {[%emt
00:00:24]} 20. a4 {[%clk 00:02:58]} {[%emt 00:00:18]} Rae8 {[%clk 00:17:02]}
{[%emt 00:07:38]} 21. a5 {[%clk 00:02:59]} {[%emt 00:00:30]} Nd7 {[%clk
00:12:15]} {[%emt 00:05:17]} 22. a6 {[%clk 00:03:20]} {[%emt 00:00:09]} b6
{[%clk 00:11:51]} {[%emt 00:00:54]} 23. b4 {[%clk 00:01:56]} {[%emt 00:01:54]}
e4 {[%clk 00:11:20]} {[%emt 00:01:01]} 24. c4 {[%clk 00:02:06]} {[%emt
00:00:20]} Kh7 {[%clk 00:10:45]} {[%emt 00:01:05]} 25. Ba3 {[%clk 00:00:33]}
{[%emt 00:02:03]} Nd4 {[%clk 00:09:44]} {[%emt 00:01:30]} 26. Ba4 {[%clk
00:00:57]} {[%emt 00:00:07]} Rd8 {[%clk 00:04:54]} {[%emt 00:05:20]} 27. Rad1
{[%clk 00:01:07]} {[%emt 00:00:20]} Qe5 {[%clk 00:04:03]} {[%emt 00:01:21]} 28.
Qe3 {[%clk 00:01:34]} {[%emt 00:00:03]} Ne6 {[%clk 00:03:51]} {[%emt 00:00:42]}
29. Rd5 {[%clk 00:02:02]} {[%emt 00:00:02]} f4 {[%clk 00:02:56]} {[%emt
00:01:26]} 30. Qxe4 {[%clk 00:02:29]} {[%emt 00:00:03]} Qxe4 {[%clk 00:02:43]}
{[%emt 00:00:42]} 31. Rxe4 {[%clk 00:02:56]} {[%emt 00:00:03]} Ng7 {[%clk
00:01:40]} {[%emt 00:01:34]} 32. Rxd6 {[%clk 00:02:47]} {[%emt 00:00:39]} Nf6
{[%clk 00:01:45]} {[%emt 00:00:24]} 33. Rxd8 {[%clk 00:03:10]} {[%emt
00:00:07]} Rxd8 {[%clk 00:02:12]} {[%emt 00:00:03]} 34. Re7 {[%clk 00:03:31]}
{[%emt 00:00:08]} Nfh5 {[%clk 00:01:45]} {[%emt 00:00:58]} 35. Rxa7 {[%clk
00:02:21]} {[%emt 00:01:40]} Rd2 {[%clk 00:00:56]} {[%emt 00:01:19]} 36. Rd7
{[%clk 00:02:37]} {[%emt 00:00:13]} Ra2 {[%clk 00:01:15]} {[%emt 00:00:12]} 37.
a7 {[%clk 00:03:03]} {[%emt 00:00:04]} Re2 {[%clk 00:00:37]} {[%emt 00:01:07]}
38. Rd1 {[%clk 00:02:06]} {[%emt 00:01:28]} 1-0

[Event "Schack-SM 2022: Mastarklassen"]
[Site "Fyrishov, Idrottsgatan 2, Uppsala, Sweden"]
[Date "2022.07.05"]
[Round "4.5"]
[White "Johnson, Daniel"]
[Black "Johansson, Thomas"]
[Result "1-0"]
[TimeControl "90 minutes for 40 moves + 30 minutes for the rest of the game + 30 seconds per move from move one."]
[WhiteFideId "1721283"]
[BlackFideId "1708244"]
[WhiteElo "2191"]
[BlackElo "2231"]

1. d4 {[%clk 01:20:01]} {[%emt 00:10:53]} Nf6 {[%clk 01:30:57]} {[%emt
00:00:09]} 2. c4 {[%clk 01:20:25]} {[%emt 00:00:06]} g6 {[%clk 01:31:21]}
{[%emt 00:00:05]} 3. f3 {[%clk 01:20:18]} {[%emt 00:00:38]} Bg7 {[%clk
01:31:44]} {[%emt 00:00:07]} 4. e4 {[%clk 01:20:38]} {[%emt 00:00:10]} d6
{[%clk 01:32:08]} {[%emt 00:00:07]} 5. Nc3 {[%clk 01:20:58]} {[%emt 00:00:09]}
O-O {[%clk 01:32:29]} {[%emt 00:00:09]} 6. Nge2 {[%clk 01:21:14]} {[%emt
00:00:15]} c5 {[%clk 01:32:42]} {[%emt 00:00:17]} 7. d5 {[%clk 01:21:18]}
{[%emt 00:00:26]} e6 {[%clk 01:33:05]} {[%emt 00:00:06]} 8. Ng3 {[%clk
01:21:18]} {[%emt 00:00:29]} exd5 {[%clk 01:33:26]} {[%emt 00:00:10]} 9. cxd5
{[%clk 01:21:42]} {[%emt 00:00:06]} Nh5 {[%clk 01:33:48]} {[%emt 00:00:06]} 10.
Nxh5 {[%clk 01:12:11]} {[%emt 00:10:03]} gxh5 {[%clk 01:30:33]} {[%emt
00:03:45]} 11. Bf4 {[%clk 01:09:32]} {[%emt 00:03:09]} a6 {[%clk 01:29:31]}
{[%emt 00:01:32]} 12. a4 {[%clk 01:09:21]} {[%emt 00:00:43]} f5 {[%clk
01:29:46]} {[%emt 00:00:15]} 13. Qd2 {[%clk 01:07:27]} {[%emt 00:02:24]} Qf6
{[%clk 01:28:38]} {[%emt 00:01:38]} 14. g3 {[%clk 00:57:09]} {[%emt 00:10:48]}
Nd7 {[%clk 01:28:12]} {[%emt 00:00:54]} 15. Bd3 {[%clk 00:55:11]} {[%emt
00:02:28]} Ne5 {[%clk 01:28:28]} {[%emt 00:00:15]} 16. O-O {[%clk 00:53:34]}
{[%emt 00:02:07]} Qg6 {[%clk 01:27:47]} {[%emt 00:01:12]} 17. exf5 {[%clk
00:39:16]} {[%emt 00:14:48]} Bxf5 {[%clk 01:28:09]} {[%emt 00:00:07]} 18. Bxf5
{[%clk 00:36:00]} {[%emt 00:03:47]} Qxf5 {[%clk 01:04:02]} {[%emt 00:24:37]} 19.
Bxe5 {[%clk 00:35:05]} {[%emt 00:01:26]} Bxe5 {[%clk 01:04:15]} {[%emt
00:00:15]} 20. Rae1 {[%clk 00:26:45]} {[%emt 00:08:49]} Rae8 {[%clk 00:58:48]}
{[%emt 00:05:57]} 21. Ne4 {[%clk 00:20:49]} {[%emt 00:06:27]} Bd4+ {[%clk
00:59:02]} {[%emt 00:00:15]} 22. Kg2 {[%clk 00:21:10]} {[%emt 00:00:10]} Qg6
{[%clk 00:50:54]} {[%emt 00:08:38]} 23. b4 {[%clk 00:16:33]} {[%emt 00:05:07]}
Re7 {[%clk 00:39:17]} {[%emt 00:12:07]} 24. bxc5 {[%clk 00:15:46]} {[%emt
00:01:17]} dxc5 {[%clk 00:39:40]} {[%emt 00:00:07]} 25. d6 {[%clk 00:14:58]}
{[%emt 00:01:17]} Rg7 {[%clk 00:37:09]} {[%emt 00:02:59]} 26. Nxc5 {[%clk
00:09:22]} {[%emt 00:06:08]} Bxc5 {[%clk 00:35:59]} {[%emt 00:01:41]} 27. Qd5+
{[%clk 00:09:35]} {[%emt 00:00:17]} Qf7 {[%clk 00:36:23]} {[%emt 00:00:05]} 28.
Qxc5 {[%clk 00:09:50]} {[%emt 00:00:16]} Qa2+ {[%clk 00:36:42]} {[%emt
00:00:10]} 29. Rf2 {[%clk 00:09:12]} {[%emt 00:01:09]} Qxa4 {[%clk 00:37:03]}
{[%emt 00:00:09]} 30. Re7 {[%clk 00:07:57]} {[%emt 00:01:45]} Qb5 {[%clk
00:36:14]} {[%emt 00:01:19]} 31. Rxg7+ {[%clk 00:06:19]} {[%emt 00:02:07]} Kxg7
{[%clk 00:36:36]} {[%emt 00:00:08]} 32. Qd4+ {[%clk 00:06:38]} {[%emt
00:00:11]} Kg6 {[%clk 00:36:22]} {[%emt 00:00:44]} 33. d7 {[%clk 00:06:26]}
{[%emt 00:00:42]} Rd8 {[%clk 00:36:43]} {[%emt 00:00:09]} 34. Rd2 {[%clk
00:05:35]} {[%emt 00:01:21]} Qf5 {[%clk 00:37:07]} {[%emt 00:00:06]} 35. Qb6+
{[%clk 00:05:53]} {[%emt 00:00:12]} Kf7 {[%emt 00:00:40]} 1-0

[Event "Schack-SM 2022: Mastarklassen"]
[Site "Fyrishov, Idrottsgatan 2, Uppsala, Sweden"]
[Date "2022.07.05"]
[Round "4.6"]
[White "Mardell, Jimmy"]
[Black "Eriksson, Jorgen"]
[Result "1/2-1/2"]
[TimeControl "90 minutes for 40 moves + 30 minutes for the rest of the game + 30 seconds per move from move one."]
[WhiteFideId "1705610"]
[BlackFideId "1701967"]
[WhiteElo "2161"]
[BlackElo "2200"]

1. d4 {[%clk 01:30:57]} {[%emt 00:00:01]} d5 {[%clk 01:30:25]} {[%emt
00:00:36]} 2. c4 {[%clk 01:31:20]} {[%emt 00:00:07]} e6 {[%clk 01:30:46]}
{[%emt 00:00:08]} 3. Nc3 {[%clk 01:31:38]} {[%emt 00:00:13]} a6 {[%clk
01:31:01]} {[%emt 00:00:15]} 4. cxd5 {[%clk 01:31:46]} {[%emt 00:00:22]} exd5
{[%clk 01:31:17]} {[%emt 00:00:13]} 5. Bf4 {[%clk 01:32:09]} {[%emt 00:00:07]}
Bd6 {[%clk 01:31:25]} {[%emt 00:00:21]} 6. Nxd5 {[%clk 01:21:48]} {[%emt
00:10:52]} Be6 {[%clk 00:49:00]} {[%emt 00:42:54]} 7. Bxd6 {[%clk 01:19:03]}
{[%emt 00:03:15]} Qxd6 {[%clk 00:47:57]} {[%emt 00:01:33]} 8. Nc3 {[%clk
01:19:15]} {[%emt 00:00:18]} Ne7 {[%clk 00:40:20]} {[%emt 00:08:07]} 9. Nf3
{[%clk 01:07:29]} {[%emt 00:12:16]} O-O {[%clk 00:32:08]} {[%emt 00:08:42]} 10.
e3 {[%emt 00:15:43]} Qb4 11. Qd2 {[%clk 00:57:45]} {[%emt 00:07:32]} c5 {[%clk
00:16:59]} {[%emt 00:03:39]} 12. a3 {[%clk 00:53:57]} {[%emt 00:04:17]} Qa5
{[%clk 00:16:22]} {[%emt 00:01:06]} 13. Be2 {[%clk 00:51:53]} {[%emt 00:02:34]}
Nbc6 {[%clk 00:15:12]} {[%emt 00:01:40]} 14. dxc5 {[%clk 00:43:37]} {[%emt
00:08:47]} Rfd8 {[%clk 00:13:32]} {[%emt 00:02:09]} 15. Qc2 {[%clk 00:36:04]}
{[%emt 00:08:03]} Qxc5 {[%clk 00:13:43]} {[%emt 00:00:20]} 16. O-O {[%clk
00:35:34]} {[%emt 00:01:00]} h6 {[%clk 00:10:14]} {[%emt 00:03:59]} 17. Rfd1
{[%clk 00:34:20]} {[%emt 00:01:44]} b5 {[%clk 00:08:40]} {[%emt 00:02:04]} 18.
b4 {[%clk 00:33:32]} {[%emt 00:01:16]} Qb6 {[%clk 00:08:54]} {[%emt 00:00:18]}
19. Ne4 {[%clk 00:28:23]} Rxd1+ {[%clk 00:07:17]} {[%emt 00:07:46]} 20. Rxd1
{[%clk 00:28:28]} a5 {[%clk 00:05:31]} {[%emt 00:02:41]} 21. Qc5 {[%clk
00:22:59]} Qxc5 {[%clk 00:05:12]} {[%emt 00:06:48]} 22. Nxc5 {[%emt 00:00:12]}
axb4 {[%clk 00:02:43]} {[%emt 00:02:52]} 23. Nxe6 {[%clk 00:21:36]} {[%emt
00:02:18]} fxe6 {[%clk 00:03:02]} {[%emt 00:00:11]} 24. axb4 {[%clk 00:21:47]}
{[%emt 00:00:20]} Ra4 {[%clk 00:02:14]} {[%emt 00:01:17]} 25. Bxb5 {[%clk
00:20:57]} {[%emt 00:01:20]} Rxb4 {[%clk 00:02:34]} {[%emt 00:00:10]} 26. Bxc6
{[%clk 00:18:21]} {[%emt 00:03:06]} Nxc6 {[%clk 00:02:57]} {[%emt 00:00:06]} 27.
g3 {[%clk 00:18:45]} {[%emt 00:00:06]} Rc4 {[%clk 00:00:38]} {[%emt 00:02:50]}
28. h4 {[%clk 00:18:35]} {[%emt 00:00:40]} Kf7 {[%clk 00:00:39]} {[%emt
00:00:29]} 29. Rd7+ {[%clk 00:16:36]} {[%emt 00:02:29]} Kf6 {[%clk 00:00:53]}
{[%emt 00:00:16]} 30. Rc7 {[%clk 00:16:23]} {[%emt 00:00:43]} Rc3 {[%clk
00:00:35]} {[%emt 00:00:49]} 31. Kg2 {[%clk 00:16:07]} {[%emt 00:00:45]} Rc4
{[%clk 00:01:03]} {[%emt 00:00:02]} 32. Nd4 {[%clk 00:08:42]} {[%emt 00:07:55]}
Ne5 {[%clk 00:01:15]} {[%emt 00:00:18]} 33. Rxc4 {[%clk 00:05:29]} {[%emt
00:03:43]} Nxc4 {[%clk 00:01:39]} {[%emt 00:00:05]} 34. g4 {[%clk 00:05:52]}
{[%emt 00:00:07]} Nd2 {[%clk 00:01:00]} {[%emt 00:01:08]} 35. f3 {[%clk
00:04:18]} {[%emt 00:02:04]} Nc4 {[%clk 00:01:07]} {[%emt 00:00:24]} 36. Kf2
{[%clk 00:04:13]} {[%emt 00:00:35]} Nd6 {[%clk 00:01:07]} {[%emt 00:00:29]} 37.
h5 {[%clk 00:03:53]} {[%emt 00:00:51]} e5 {[%clk 00:00:37]} {[%emt 00:01:01]}
38. Ne2 {[%clk 00:03:39]} {[%emt 00:00:44]} g6 {[%clk 00:00:39]} {[%emt
00:00:28]} 39. hxg6 {[%clk 00:03:06]} {[%emt 00:01:03]} Kxg6 {[%clk 00:01:07]}
{[%emt 00:00:02]} 40. Ng3 {[%clk 00:03:27]} {[%emt 00:00:08]} Kg5 {[%clk
00:00:42]} {[%emt 00:00:56]} 41. e4 {[%clk 00:19:58]} {[%emt 00:13:59]} Nf7
{[%clk 00:24:41]} {[%emt 00:06:31]} 42. Nf5 {[%clk 00:19:53]} {[%emt 00:00:36]}
h5 {[%clk 00:23:44]} {[%emt 00:01:27]} 43. Kg3 {[%clk 00:16:38]} {[%emt
00:03:45]} Nh8 {[%clk 00:18:03]} {[%emt 00:06:10]} 44. Nh4 {[%clk 00:13:20]}
{[%emt 00:03:48]} Nf7 {[%clk 00:18:08]} {[%emt 00:00:25]} 45. Ng2 {[%clk
00:07:38]} {[%emt 00:06:13]} Nd6 {[%clk 00:14:16]} {[%emt 00:04:21]} 46. gxh5
{[%clk 00:06:49]} {[%emt 00:01:19]} Kxh5 {[%clk 00:14:34]} {[%emt 00:00:12]} 47.
Kf2 {[%clk 00:07:13]} {[%emt 00:00:06]} Kg5 {[%clk 00:13:02]} {[%emt 00:02:01]}
48. Ke3 {[%clk 00:07:36]} {[%emt 00:00:07]} Kf6 {[%clk 00:12:34]} {[%emt
00:00:58]} 49. Kd3 {[%clk 00:07:50]} {[%emt 00:00:16]} Ke6 {[%clk 00:10:58]}
{[%emt 00:02:07]} 50. Kc3 {[%clk 00:07:25]} {[%emt 00:00:54]} Nf7 {[%clk
00:05:52]} {[%emt 00:05:36]} 51. Kc4 {[%clk 00:06:31]} {[%emt 00:01:24]} Ng5
{[%clk 00:06:01]} {[%emt 00:00:22]} 52. Nh4 {[%clk 00:06:29]} {[%emt 00:00:32]}
Kd6 {[%clk 00:06:03]} {[%emt 00:00:27]} 53. Kb5 {[%clk 00:06:33]} {[%emt
00:00:28]} Ne6 {[%clk 00:03:30]} {[%emt 00:03:03]} 54. Nf5+ {[%clk 00:05:21]}
{[%emt 00:01:41]} Kd7 {[%clk 00:03:58]} {[%emt 00:00:02]} 55. Kb4 {[%clk
00:01:56]} {[%emt 00:03:56]} Ng5 {[%clk 00:04:16]} {[%emt 00:00:11]} 56. Nh4
{[%clk 00:02:17]} {[%emt 00:00:09]} Kd6 {[%clk 00:04:28]} {[%emt 00:00:17]} 57.
Kb5 {[%clk 00:01:42]} {[%emt 00:01:06]} Ne6 {[%clk 00:04:40]} {[%emt 00:00:17]}
58. Kc4 {[%clk 00:01:31]} {[%emt 00:00:42]} Ng5 {[%clk 00:04:48]} {[%emt
00:00:22]} 59. Kd3 {[%clk 00:01:47]} {[%emt 00:00:14]} Ke6 {[%clk 00:04:37]}
{[%emt 00:00:41]} 60. Ke3 {[%clk 00:01:54]} {[%emt 00:00:24]} Nf7 {[%clk
00:04:36]} {[%emt 00:00:30]} 61. Ng2 {[%clk 00:01:42]} {[%emt 00:00:42]} Kf6
{[%clk 00:04:37]} {[%emt 00:00:29]} 62. Ne1 {[%clk 00:01:47]} {[%emt 00:00:25]}
Ng5 {[%clk 00:03:29]} {[%emt 00:01:38]} 63. Nd3 {[%clk 00:01:55]} {[%emt
00:00:23]} Ne6 {[%clk 00:03:21]} {[%emt 00:00:38]} 64. Nb4 {[%clk 00:01:58]}
{[%emt 00:00:26]} Ng5 {[%clk 00:02:53]} {[%emt 00:00:58]} 65. Nc6 {[%clk
00:01:41]} {[%emt 00:00:46]} Nf7 {[%clk 00:02:59]} {[%emt 00:00:25]} 66. f4
{[%clk 00:01:30]} {[%emt 00:00:42]} exf4+ {[%clk 00:02:58]} {[%emt 00:00:31]}
67. Kxf4 {[%clk 00:01:55]} {[%emt 00:00:04]} Ke6 {[%clk 00:02:48]} {[%emt
00:00:40]} 68. Nd4+ {[%clk 00:02:00]} {[%emt 00:00:26]} Kf6 {[%clk 00:03:09]}
{[%emt 00:00:09]} 1/2-1/2

[Event "Schack-SM 2022: Mastarklassen"]
[Site "Fyrishov, Idrottsgatan 2, Uppsala, Sweden"]
[Date "2022.07.05"]
[Round "4.7"]
[White "Strom-Engdahl, Alexander"]
[Black "Tiger-Norqvist, Axel"]
[Result "1/2-1/2"]
[TimeControl "90 minutes for 40 moves + 30 minutes for the rest of the game + 30 seconds per move from move one."]
[WhiteFideId "1741586"]
[BlackFideId "1716816"]
[WhiteElo "2077"]
[BlackElo "2239"]

1. d4 {[%clk 01:30:38]} {[%emt 00:00:21]} Nf6 {[%clk 01:30:49]} {[%emt
00:00:11]} 2. Bf4 {[%clk 01:31:02]} {[%emt 00:00:06]} g6 {[%clk 01:30:23]}
{[%emt 00:00:57]} 3. Nc3 {[%clk 01:30:57]} {[%emt 00:00:35]} Bg7 {[%clk
01:28:05]} {[%emt 00:02:47]} 4. e4 {[%clk 01:31:19]} {[%emt 00:00:08]} O-O
{[%clk 01:23:39]} {[%emt 00:04:57]} 5. Qd2 {[%clk 01:26:45]} {[%emt 00:05:04]}
c6 {[%clk 01:21:23]} {[%emt 00:02:46]} 6. e5 {[%clk 01:19:11]} {[%emt
00:08:05]} Ne8 {[%clk 01:10:49]} {[%emt 00:11:04]} 7. Nf3 {[%clk 01:17:50]}
{[%emt 00:01:50]} d6 {[%clk 01:10:28]} {[%emt 00:00:52]} 8. O-O-O {[%clk
01:17:49]} {[%emt 00:00:30]} dxe5 {[%clk 01:10:10]} {[%emt 00:00:49]} 9. Bxe5
{[%clk 01:13:08]} {[%emt 00:05:10]} Nf6 {[%clk 01:06:11]} {[%emt 00:04:30]} 10.
h4 {[%clk 01:06:23]} {[%emt 00:07:14]} Nbd7 {[%clk 00:58:45]} {[%emt 00:07:56]}
11. Bf4 {[%clk 00:58:28]} {[%emt 00:08:25]} h5 {[%clk 00:39:43]} {[%emt
00:19:32]} 12. Bd3 {[%clk 00:46:41]} {[%emt 00:12:17]} Ng4 {[%clk 00:36:29]}
{[%emt 00:03:45]} 13. Rhe1 {[%clk 00:42:37]} {[%emt 00:04:35]} Ndf6 {[%clk
00:31:17]} {[%emt 00:05:42]} 14. Kb1 {[%clk 00:41:17]} {[%emt 00:01:49]} e6
{[%clk 00:29:01]} {[%emt 00:02:46]} 15. Ne4 {[%clk 00:37:41]} {[%emt 00:04:06]}
Nxe4 {[%clk 00:27:30]} {[%emt 00:02:01]} 16. Bxe4 {[%clk 00:37:52]} {[%emt
00:00:19]} Qb6 {[%clk 00:19:54]} {[%emt 00:08:07]} 17. c3 {[%clk 00:35:49]}
{[%emt 00:02:33]} Rd8 {[%clk 00:19:55]} {[%emt 00:00:28]} 18. Qc2 {[%clk
00:35:09]} {[%emt 00:01:09]} Bd7 {[%clk 00:15:39]} {[%emt 00:04:47]} 19. Bg5
{[%clk 00:28:50]} {[%emt 00:06:49]} Rdc8 {[%clk 00:12:17]} {[%emt 00:03:53]} 20.
Ne5 {[%clk 00:25:08]} {[%emt 00:04:12]} Be8 {[%clk 00:09:03]} 21. Nxg4 {[%clk
00:23:00]} {[%emt 00:06:21]} hxg4 {[%clk 00:09:29]} 22. Qd2 {[%clk 00:20:57]}
{[%emt 00:02:38]} c5 {[%clk 00:09:28]} 23. Bh6 {[%clk 00:18:00]} {[%emt
00:03:58]} Bh8 {[%clk 00:07:27]} 24. h5 {[%clk 00:15:41]} {[%emt 00:05:20]}
cxd4 {[%clk 00:07:19]} 25. cxd4 {[%clk 00:15:18]} {[%emt 00:01:31]} Bf6 {[%clk
00:07:02]} 26. hxg6 {[%clk 00:15:08]} {[%emt 00:01:27]} fxg6 {[%clk 00:07:27]}
27. Rh1 {[%clk 00:10:41]} {[%emt 00:05:00]} Bf7 {[%clk 00:07:19]} 28. Qd3
{[%clk 00:10:32]} {[%emt 00:01:19]} Rd8 {[%clk 00:06:27]} 29. Bxg6 {[%clk
00:10:25]} {[%emt 00:01:59]} Rxd4 {[%clk 00:06:52]} 30. Bxf7+ {[%clk 00:10:50]}
{[%emt 00:00:10]} Kxf7 {[%clk 00:07:18]} 31. Qh7+ {[%clk 00:11:04]} {[%emt
00:00:19]} Ke8 {[%clk 00:07:36]} 32. Qg8+ {[%clk 00:09:14]} {[%emt 00:02:32]}
Ke7 {[%clk 00:06:46]} 33. Qh7+ {[%clk 00:08:20]} {[%emt 00:02:44]} Ke8 {[%clk
00:06:02]} 34. Qg6+ {[%clk 00:08:15]} {[%emt 00:01:49]} Ke7 {[%clk 00:06:28]}
35. Qh7+ {[%clk 00:05:33]} {[%emt 00:03:17]} Ke8 {[%clk 00:06:22]} 1/2-1/2

[Event "Schack-SM 2022: Mastarklassen"]
[Site "Fyrishov, Idrottsgatan 2, Uppsala, Sweden"]
[Date "2022.07.05"]
[Round "4.8"]
[White "Landgren, Andreas"]
[Black "Joensson, Jacob"]
[Result "1/2-1/2"]
[TimeControl "90 minutes for 40 moves + 30 minutes for the rest of the game + 30 seconds per move from move one."]
[WhiteTitle "FM"]
[WhiteFideId "1704311"]
[BlackFideId "1726315"]
[WhiteElo "2224"]
[BlackElo "1947"]

1. e4 {[%clk 01:30:58]} {[%emt 00:00:02]} e5 {[%clk 01:30:52]} {[%emt
00:00:08]} 2. Nf3 {[%clk 01:31:21]} {[%emt 00:00:07]} Nc6 {[%clk 01:31:17]}
{[%emt 00:00:05]} 3. Bb5 {[%clk 01:31:45]} {[%emt 00:00:06]} a6 {[%clk
01:31:39]} {[%emt 00:00:08]} 4. Ba4 {[%clk 01:32:10]} {[%emt 00:00:05]} Nf6
{[%clk 01:32:02]} {[%emt 00:00:06]} 5. O-O {[%clk 01:32:27]} {[%emt 00:00:12]}
Be7 {[%clk 01:32:10]} {[%emt 00:00:23]} 6. Re1 {[%clk 01:32:41]} {[%emt
00:00:16]} b5 {[%clk 01:32:05]} {[%emt 00:00:35]} 7. Bb3 {[%clk 01:33:08]}
{[%emt 00:00:03]} d6 {[%clk 01:32:28]} {[%emt 00:00:07]} 8. a4 {[%clk
01:33:30]} {[%emt 00:00:08]} Rb8 {[%clk 01:24:09]} {[%emt 00:08:49]} 9. axb5
{[%clk 01:30:14]} {[%emt 00:03:46]} axb5 {[%clk 01:24:32]} {[%emt 00:00:07]} 10.
h3 {[%clk 01:30:01]} {[%emt 00:00:42]} O-O {[%clk 01:21:17]} {[%emt 00:03:45]}
11. Nc3 {[%clk 01:21:59]} {[%emt 00:08:31]} Re8 {[%clk 01:15:56]} {[%emt
00:05:51]} 12. d3 {[%clk 01:13:48]} {[%emt 00:08:41]} h6 {[%clk 01:09:07]}
{[%emt 00:07:19]} 13. Be3 {[%clk 01:09:35]} {[%emt 00:04:42]} Bf8 {[%clk
01:05:35]} {[%emt 00:04:03]} 14. Ne2 {[%clk 00:51:47]} {[%emt 00:18:17]} d5
{[%clk 00:51:03]} {[%emt 00:15:02]} 15. exd5 {[%clk 00:46:57]} {[%emt
00:05:21]} Nxd5 {[%clk 00:51:23]} {[%emt 00:00:10]} 16. Bd2 {[%clk 00:46:56]}
{[%emt 00:00:31]} Bb7 {[%clk 00:39:03]} {[%emt 00:12:50]} 17. Nc3 {[%clk
00:33:51]} {[%emt 00:13:35]} Nxc3 {[%clk 00:33:48]} {[%emt 00:05:45]} 18. bxc3
{[%clk 00:34:14]} {[%emt 00:00:07]} Qd6 {[%clk 00:31:38]} {[%emt 00:02:41]} 19.
Nh2 {[%clk 00:25:37]} {[%emt 00:09:06]} Rbd8 {[%clk 00:26:16]} {[%emt
00:05:52]} 20. Qf3 {[%clk 00:19:33]} {[%emt 00:06:34]} Qg6 {[%clk 00:25:51]}
{[%emt 00:00:55]} 21. Qg4 {[%clk 00:18:14]} {[%emt 00:01:49]} Qf6 {[%clk
00:25:00]} {[%emt 00:01:21]} 22. Qg3 {[%clk 00:17:28]} {[%emt 00:01:16]} Kh7
{[%clk 00:21:52]} {[%emt 00:03:38]} 23. Re3 {[%clk 00:09:31]} {[%emt 00:08:27]}
Bd6 {[%clk 00:16:44]} {[%emt 00:05:38]} 24. Rf3 {[%clk 00:08:31]} {[%emt
00:01:30]} e4 {[%clk 00:16:48]} {[%emt 00:00:27]} 25. Rxf6 {[%clk 00:08:49]}
{[%emt 00:00:12]} Bxg3 {[%clk 00:17:10]} {[%emt 00:00:09]} 26. Rxf7 {[%clk
00:09:09]} {[%emt 00:00:09]} Ne5 {[%clk 00:14:38]} {[%emt 00:03:02]} 27. fxg3
{[%clk 00:06:51]} {[%emt 00:02:49]} Nxf7 {[%clk 00:14:54]} {[%emt 00:00:13]} 28.
Bxf7 {[%emt 00:00:08]} Re7 {[%clk 00:15:13]} {[%emt 00:00:08]} 29. Bh5 {[%clk
00:06:36]} {[%emt 00:01:10]} exd3 {[%clk 00:14:08]} {[%emt 00:01:35]} 30. Rc1
{[%clk 00:05:12]} {[%emt 00:01:54]} Re2 {[%clk 00:13:53]} {[%emt 00:00:45]} 31.
Nf3 {[%clk 00:02:44]} {[%emt 00:02:58]} Bxf3 {[%clk 00:14:06]} {[%emt
00:00:17]} 32. Bxf3 {[%clk 00:03:07]} {[%emt 00:00:08]} Rxd2 {[%clk 00:14:25]}
{[%emt 00:00:11]} 33. cxd3 {[%clk 00:03:29]} {[%emt 00:00:07]} R8xd3 {[%clk
00:09:00]} {[%emt 00:05:54]} 1/2-1/2